{"text_format":"3","workbook":"xlsx","n_sheets":2,"sheets":["Worksheet","Hoja1"],"read":"whole","date_system":"1900"}

{"sheet":"Worksheet","index":0,"n_rows":445,"n_cols":9,"rows_kept":445}
["HOJA DE PRECIO identificador: ",{"$nulls":6},1,2]
[{"$nulls":7},"HOJA:FINAL","HOJA:INTERNO"]
[null,"Código","Nombre","Código de Barras","Unidad","Categoria","Costo Unitario (Bs)","Precio Unitario(Hoja de Precio) Bs.","Precio Unitario(Hoja de Precio) Bs."]
[null,"C007","AC - 19V - 4.74A",null,"UNIDAD (BIENES) ","CARGADOR",56,120,85]
[null,"C001","AC - 19V - 2.15A",null,"UNIDAD (BIENES) ","CARGADOR",0,0,0]
[null,"C002","AC - 19V - 2.37A",null,"UNIDAD (BIENES) ","CARGADOR",50,100,75]
[null,"C004","AC - 19V - 3.42A",null,"UNIDAD (BIENES) ","CARGADOR",45.5,100,75]
[null,"C006","AC - 19V - 3.95A",null,"UNIDAD (BIENES) ","CARGADOR",0,0,0]
[null,"C003","AC - 19V - 2.37A",null,"UNIDAD (BIENES) ","CARGADOR",50,100,75]
[null,"C005","AC - 19V - 3.42A",null,"UNIDAD (BIENES) ","CARGADOR",50,100,75]
[null,"C016","AP - 20V - 4.25A",null,"UNIDAD (BIENES) ","CARGADOR",186,260,235]
[null,"C013","AP - 16.5V - 3.65A",null,"UNIDAD (BIENES) ","CARGADOR",0,0,0]
[null,"C012","AP - 14.85V - 3.05A",null,"UNIDAD (BIENES) ","CARGADOR",171,220,200]
[null,"C011","AP   -   14.5V - 3.1A   ",null,"UNIDAD (BIENES) ","CARGADOR",171,220,200]
[null,"C013","AP   -   16.5V - 3.65A",null,"UNIDAD (BIENES) ","CARGADOR",{"$f":"15.2*9.75","v":148.2},220,195]
[null,"C015","AP   -   18.5V - 4.6A",null,"UNIDAD (BIENES) ","CARGADOR",171,220,200]
[null,"C012","AP   -   14.85V - 3.05A",null,"UNIDAD (BIENES) ","CARGADOR",171,220,200]
[null,"C014","AP   -   16.5V - 3.65A",null,"UNIDAD (BIENES) ","CARGADOR",171,220,200]
[null,"C017","AP  -   AUTOVOLTAGE 5v/3A - 20V/4.35A",null,"UNIDAD (BIENES) ","CARGADOR",260,320,295]
[null,"C018","AP  -   AUTOVOLTAGE 5v/3A - 20V/4.8A",null,"UNIDAD (BIENES) ","CARGADOR",260,340,305]
[null,"C019","ASU   -   12V - 3A",null,"UNIDAD (BIENES) ","CARGADOR",53,100,75]
[null,"C024","ASU   -   19V - 2.1A",null,"UNIDAD (BIENES) ","CARGADOR",50,100,75]
[null,"C028","ASU   -   19V - 3.42A",null,"UNIDAD (BIENES) ","CARGADOR",{"$f":"4.67*9.75","v":45.5325},100,75]
[null,"C030","ASU   -   19V - 3.42A - CUADRADO",null,"UNIDAD (BIENES) ","CARGADOR",0,0,0]
[null,"C029","ASU   -   19V - 3.42A",null,"UNIDAD (BIENES) ","CARGADOR",50,100,75]
[null,"C035","ASU   -   19V - 6.32A",null,"UNIDAD (BIENES) ","CARGADOR",200,270,250]
[null,"C034","ASU   -   19V - 7.1A",null,"UNIDAD (BIENES) ","CARGADOR",0,0,0]
[null,"C066","ASU   -   19V - 3.42A - CUADRADO",null,"UNIDAD (BIENES) ","CARGADOR",80,130,110]
[null,"C032","ASU - 19V - 4.74 - CUADRADO",null,"UNIDAD (BIENES) ","CARGADOR",90,150,120]
[null,"CA-211","ASU - 20V - 3.25A - C",null,"UNIDAD (BIENES) ","CARGADOR",114,180,160]
[null,"C036","ASU - 19.5V - 7.7A",null,"UNIDAD (BIENES) ","CARGADOR",{"$f":"20.7*9.75","v":201.825},290,260]
[null,"C039","DL  -   19.5V - 2.31A",null,"UNIDAD (BIENES) ","CARGADOR",50,100,75]
[null,"C040","DL  -   19.5V - 3.34A",null,"UNIDAD (BIENES) ","CARGADOR",{"$f":"4.8*9.75","v":46.8},100,75]
[null,"C042","DL  -   19.5V - 4.62A",null,"UNIDAD (BIENES) ","CARGADOR",56,120,85]
[null,"C045","DL  -   19.5V - 6.7A",null,"UNIDAD (BIENES) ","CARGADOR",250,330,300]
[null,"C041","DL  -   19.5V - 3.34A",null,"UNIDAD (BIENES) ","CARGADOR",{"$f":"4.8*9.75","v":46.8},100,75]
[null,"C043","DL  -   19.5V - 4.62A",null,"UNIDAD (BIENES) ","CARGADOR",56,120,85]
[null,"C044","DL  -   19.5V - 6.7A",null,"UNIDAD (BIENES) ","CARGADOR",{"$f":"19.7*9.75","v":192.075},280,250]
[null,"C046","DL  -   19.5V - 9.5A",null,"UNIDAD (BIENES) ","CARGADOR",398,460,435]
[null,"C048","DL  -   19.5V - 12.3A",null,"UNIDAD (BIENES) ","CARGADOR",470,250,210]
[null,"CA-169","DL   -   20V  -  3.25A   ",null,"UNIDAD (BIENES) ","CARGADOR",0,0,0]
[null,"C127","DL - 19.5V - 3.34A - - CUARTA GENERACION - ORGIGINAL",null,"UNIDAD (BIENES) ","CARGADOR",220,330,290]
[null,"CA-206","DELL 20V - 3.25A",null,"UNIDAD (BIENES) ","CARGADOR",120,220,175]
[null,"C050","H  -   19.5V - 2.05A",null,"UNIDAD (BIENES) ","CARGADOR",50,100,75]
[null,"C051","H  -   19.5V - 2.31A - AZUL",null,"UNIDAD (BIENES) ","CARGADOR",{"$f":"4.68*9.75","v":45.629999999999995},100,75]
[null,"C053","H  -   19.5V - 3.33A - AZUL",null,"UNIDAD (BIENES) ","CARGADOR",{"$f":"4.85*9.75","v":47.287499999999994},100,75]
[null,"C057","H  -   19.5V - 4.62A - AZUL",null,"UNIDAD (BIENES) ","CARGADOR",56,120,85]
[null,"C059","H  -   19.5V - 6.15A - EUROPEA",null,"UNIDAD (BIENES) ","CARGADOR",220,320,280]
[null,"C054","H  -   19.5V - 3.33A - ENVY",null,"UNIDAD (BIENES) ","CARGADOR",50,100,75]
[null,"C055","H  -   18.5V - 3.5A - AMARILLA",null,"UNIDAD (BIENES) ","CARGADOR",{"$f":"4.67*9.75","v":45.5325},100,75]
[null,"C175","H AUTOVOLTAGE TIPO C",null,"UNIDAD (BIENES) ","CARGADOR",{"$f":"10.7*9.75","v":104.32499999999999},180,150]
[null,"C056","H  -   18.5V - 3.5A - AGUJA",null,"UNIDAD (BIENES) ","CARGADOR",{"$f":"4.67*9.75","v":45.5325},100,75]
[null,"C052","H  -   19.5V - 3.33A - AGUJA",null,"UNIDAD (BIENES) ","CARGADOR",{"$f":"4.68*9.75","v":45.629999999999995},100,75]
[null,"C058","H  -   19V - 4.74A - AZUL",null,"UNIDAD (BIENES) ","CARGADOR",56,120,85]
[null,"C060","H  -   18.5V - 6.5A - AGUJA",null,"UNIDAD (BIENES) ","CARGADOR",220,330,290]
[null,"C133","H - 19.5V - 3.33A - AZUL - ORIGINAL",null,"UNIDAD (BIENES) ","CARGADOR",{"$f":"14.8*9.75","v":144.3},270,230]
[null,"C135","H - 18.5V - 3.5A - AGUJA - ORIGINAL",null,"UNIDAD (BIENES) ","CARGADOR",134,260,220]
[null,"C134","H - 19.5V - 3.33A - AZUL - CUADRADO ORIGINAL",null,"UNIDAD (BIENES) ","CARGADOR",{"$f":"22.5*9.75","v":219.375},350,310]
[null,"C141","H - 19.5V - 10.3A - AZUL - CUARTA GENERACION - ORIGINAL",null,"UNIDAD (BIENES) ","CARGADOR",503,620,580]
[null,"C064","LENO  -   20V - 2.25A",null,"UNIDAD (BIENES) ","CARGADOR",50,100,75]
[null,"C068","LENO  -   20V - 3.25A    USB",null,"UNIDAD (BIENES) ","CARGADOR",{"$f":"5.35*9.75","v":52.162499999999994},100,75]
[null,"C075","LENO - 20V - 4.5A",null,"UNIDAD (BIENES) ","CARGADOR",{"$f":"6.7*9.75","v":65.325},120,95]
[null,"C077","LENO - 20V - 6.75A",null,"UNIDAD (BIENES) ","CARGADOR",280,360,320]
[null,"C065","LENO  -   20V - 2.25A",null,"UNIDAD (BIENES) ","CARGADOR",50,100,75]
[null,"C069","LENO  -   20V - 3.25A",null,"UNIDAD (BIENES) ","CARGADOR",{"$f":"5.15*9.75","v":50.212500000000006},100,75]
[null,"C154","LENO  -   20V - 3.25A - CUADRADO",null,"UNIDAD (BIENES) ","CARGADOR",0,0,0]
[null,"C072","LENO  -   20V - 3.25A -  MAGISTERIO - CP",null,"UNIDAD (BIENES) ","CARGADOR",{"$f":"5.15*9.75","v":50.212500000000006},100,75]
[null,"C071","LENO  -   20V - 3.25A - PUNTA MARRON - MAGISTERIO",null,"UNIDAD (BIENES) ","CARGADOR",56,120,85]
[null,"CA-137","LENO  -   20V - 3.25A - PUNTA GRIS",null,"UNIDAD (BIENES) ","CARGADOR",82,120,85]
[null,"CA-06","LENO   -   20V  -  4.5A  PUNTA GRIS",null,"UNIDAD (BIENES) ","CARGADOR",86,120]
[null,"C070","LENO  -   AUTOVOLTAGE",null,"UNIDAD (BIENES) ","CARGADOR",0,190,160]
[null,"CA-190","LENO   20V  -  2.25A",null,"UNIDAD (BIENES) ","CARGADOR",105,160,145]
[null,"CA-156","LENO   20V  -  3.25A",null,"UNIDAD (BIENES) ","CARGADOR",114,180,150]
[null,"C172","LENO  -   AUTOVOLTAGE - CUADRADO",null,"UNIDAD (BIENES) ","CARGADOR",0,0,0]
[null,"C073","LENO  -   20V - 3.25A",null,"UNIDAD (BIENES) ","CARGADOR",153,230,195]
[null,"C085","SON - 19.5V - 3.3A",null,"UNIDAD (BIENES) ","CARGADOR",50,100,75]
[null,"C086","SON - 19.5V - 3.9A",null,"UNIDAD (BIENES) ","CARGADOR",{"$f":"5.2*9.75","v":50.7},120,80]
[null,"C087","SON - 19.5V - 4.7A",null,"UNIDAD (BIENES) ","CARGADOR",{"$f":"5.4*9.75","v":52.650000000000006},120,85]
[null,"C096","Autovoltage   5v/2.4A  - 20V/3.25A",null,"UNIDAD (BIENES) ","CARGADOR",210,280,250]
[null,"C088","TOSHI - 19V - 2.37A",null,"UNIDAD (BIENES) ","CARGADOR",50,100,75]
[null,"C091","TOSHI - 19V - 3.42A",null,"UNIDAD (BIENES) ","CARGADOR",{"$f":"4.67*9.75","v":45.5325},100,75]
[null,"C092","TOSHI - 19V - 3.95A",null,"UNIDAD (BIENES) ","CARGADOR",{"$f":"4.67*9.75","v":45.5325},100,75]
[null,"C093","TOSHI - 19V - 4.74A",null,"UNIDAD (BIENES) ","CARGADOR",{"$f":"5.4*9.75","v":52.650000000000006},120,85]
[null,"C094","TOSHI - 19V - 6.3A",null,"UNIDAD (BIENES) ","CARGADOR",280,360,330]
[null,"C089","TOSHI - 19V - 2.37A",null,"UNIDAD (BIENES) ","CARGADOR",50,100,75]
[null,"C090","TOSHI - 15V - 5A",null,"UNIDAD (BIENES) ","CARGADOR",50,120,85]
[null,"C082","SAM - 19V - 2.1A",null,"UNIDAD (BIENES) ","CARGADOR",50,100,75]
[null,"C083","SAM - 19V - 3.16A - MAGISTERIO",null,"UNIDAD (BIENES) ","CARGADOR",{"$f":"4.67*9.75","v":45.5325},100,75]
[null,"C084","SAM - 19V - 4.74A",null,"UNIDAD (BIENES) ","CARGADOR",{"$f":"5.4*9.75","v":52.650000000000006},120,85]
[null,"C097","SAM - CARGADOR MONITOR - SAM 14V - 2.14A",null,"UNIDAD (BIENES) ","CARGADOR",{"$f":"4.67*9.75","v":45.5325},100,75]
[null,"C099","LG - CARGADOR MONITOR - LG 12V - 2A",null,"UNIDAD (BIENES) ","CARGADOR",50,100,75]
[null,"C076","LG - CARGADOR MONITOR LG 14V - 2.1A ",null,"UNIDAD (BIENES) ","CARGADOR",50,100,75]
[null,"C100","LG - CARGADOR MONITOR - LG 19V - 2.1A",null,"UNIDAD (BIENES) ","CARGADOR",50,100,75]
[null,"C079","MICRSF - 12V - 3.6A",null,"UNIDAD (BIENES) ","CARGADOR",174,260,230]
[null,"C080","MICRSF - 15V - 1.6A",null,"UNIDAD (BIENES) ","CARGADOR",174,260,230]
[null,"C081","MICRSF - 12V - 2.58A",null,"UNIDAD (BIENES) ","CARGADOR",174,260,230]
[null,"C147","MICRSF - 15V - 2.58A",null,"UNIDAD (BIENES) ","CARGADOR",174,260,230]
[null,"B002","BATERIA ACER AS09A - AS07A - Aspire 4710",null,"UNIDAD (BIENES) ","BATERIA",271.4,285,275]
[null,"B004","BATERIA ACER AS10D31 - Aspire 4741 - E1-471",null,"UNIDAD (BIENES) ","BATERIA",167.48,220,200]
[null,"B003","BATERIA ACER AS07B31 - Aspire 5920",null,"UNIDAD (BIENES) ","BATERIA",271.4,285,275]
[null,"B001","BATERIA ACER AL12A32 - Aspire V5",null,"UNIDAD (BIENES) ","BATERIA",232.88,250,235]
[null,"B023","BATERIA ASUS X450. A41-X550A",null,"UNIDAD (BIENES) ","BATERIA",297.57,320,300]
[null,"B024","BATERIA ASUS X451. X551 - INTERNA",null,"UNIDAD (BIENES) ","BATERIA",0,330,310]
[null,"B027","BATERIA ASUS X455 - C21N1401 - INTERNA",null,"UNIDAD (BIENES) ","BATERIA",0,420,410]
[null,"B028","BATERIA ASUS X555 - C21N1347 - INTERNA",null,"UNIDAD (BIENES) ","BATERIA",0,450,440]
[null,"B029","BATERIA ASUS X541 - A31N1601 - INTERNA",null,"UNIDAD (BIENES) ","BATERIA",0,385,385]
[null,"B025","BATERIA ASUS X540. A31N1519 - INTERNA",null,"UNIDAD (BIENES) ","BATERIA",360,385,385]
[null,"B036","BATERIA DELL TYPE J1KND - Inspiron N4010-14R",null,"UNIDAD (BIENES) ","BATERIA",258,270,260]
[null,"B045","BATERIA DELL TYPE T54FJ - Latitude E6420 E6520",null,"UNIDAD (BIENES) ","BATERIA",329,360,350]
[null,"B048","BATERIA DELL TYPE VV0NF - Latitude E5540 E5440",null,"UNIDAD (BIENES) ","BATERIA",0,0,0]
[null,"B042","BATERIA DELL TYPE MR90Y - INSPIRON 3421 - 5421 - (B) 11.1V",null,"UNIDAD (BIENES) ","BATERIA",216,250,235]
[null,"B037","BATERIA DELL TYPE 268X5 - Vostro V131 Series",null,"UNIDAD (BIENES) ","BATERIA",289,295,295]
[null,"B051","BATERIA DELL TYPE M5Y1K - 3576 - 3451",null,"UNIDAD (BIENES) ","BATERIA",354,370,370]
[null,"B258","BATERIA DELL YRDD6 - INTERNA - ORG",null,"UNIDAD (BIENES) ","BATERIA",554,560,560]
[null,"b064","BATERIA DELL 357F9 71JF4 - INTERNA",null,"UNIDAD (BIENES) ","BATERIA",null,530,530]
[null,"B058","BATERIA DELL TYPE WDXOR - INTERNA",null,"UNIDAD (BIENES) ","BATERIA",285,350,320]
[null,"B067","BATERIA HP OA04 - 240 G2",null,"UNIDAD (BIENES) ","BATERIA",157,220,195]
[null,"B068","BATERIA HP PH06 4320-420 PROBOOK",null,"UNIDAD (BIENES) ","BATERIA",231,250,235]
[null,"B069","BATERIA HP PR06-4330S - 4430S",null,"UNIDAD (BIENES) ","BATERIA",231,240,220]
[null,"B070","BATERIA HP MU06 - CQ42 - DM4",null,"UNIDAD (BIENES) ","BATERIA",{"$f":"15.4*9.75","v":150.15},220,195]
[null,"B071","BATERIA HP EV06 - DV4 - DV5 - CQ50 - CQ40",null,"UNIDAD (BIENES) ","BATERIA",158,220,195]
[null,"B072","BATERIA HP HS04 - 240 G4",null,"UNIDAD (BIENES) ","BATERIA",{"$f":"14.9*9.75","v":145.275},220,195]
[null,"B073","BATERIA HP VI04- PROBOOK 440 G2 SERIES",null,"UNIDAD (BIENES) ","BATERIA",{"$f":"14.9*9.75","v":145.275},220,195]
[null,"B076","BATERIA HP DV2000 - DV6000",null,"UNIDAD (BIENES) ","BATERIA",154,220,195]
[null,"B260","BATERIA HP LA04 - PAVILION TOUCHSMART 14 15 PLATEADO",null,"UNIDAD (BIENES) ","BATERIA",199,230,210]
[null,"B079","BATERIA HP JC04 - 240 G6 6 CELDAS",null,"UNIDAD (BIENES) ","BATERIA",{"$f":"14.9*9.75","v":145.275},220,195]
[null,"B095","BATERIA HP MO06 - MO09 - DV4-5000",null,"UNIDAD (BIENES) ","BATERIA",199,230,210]
[null,"B098","BATERIA HP RI04 - PROBOOK 450 G3",null,"UNIDAD (BIENES) ","BATERIA",205,230,215]
[null,"B093","BATERIA HP FP06 - PROBOOK 440 G1",null,"UNIDAD (BIENES) ","BATERIA",234,260,245]
[null,"B114","BATERIA HP BP02 - INTERNA",null,"UNIDAD (BIENES) ","BATERIA",{"$f":"25.5*9.75","v":248.625},320,300]
[null,"B116","BATERIA HP CS03 - INTERNA",null,"UNIDAD (BIENES) ","BATERIA",0,0,0]
[null,"B125","BATERIA HP HT03 - INTERNA",null,"UNIDAD (BIENES) ","BATERIA",{"$f":"25*9.75","v":243.75},350,310]
[null,"b221","BATERIA HP HT03XL ORIGINAL",null,"UNIDAD (BIENES) ","BATERIA",345,470,420]
[null,"B133","BATERIA HP WR03XL - HSTNN-IB5J",null,"UNIDAD (BIENES) ","BATERIA",499,520,500]
[null,"B074","BATERIA HP KI04 - HSTNN - LB6S",null,"UNIDAD (BIENES) ","BATERIA",192,230,210]
[null,"B087","BATERIA HP MT03 - MINI 210-3000",null,"UNIDAD (BIENES) ","BATERIA",238.56,250,245]
[null,"B094","BATERIA HP GA08 - DV7 - HSTNN-C50C",null,"UNIDAD (BIENES) ","BATERIA",299,330,310]
[null,"B099","BATERIA HP RO04 - PROBOOK 430 G3",null,"UNIDAD (BIENES) ","BATERIA",224.36,260,235]
[null,"B103","BATERIA HP VK04 - YB4D Sleekbook 14/15",null,"UNIDAD (BIENES) ","BATERIA",192.4,230,210]
[null,"B119","BATERIA HP LE03 - INTERNA",null,"UNIDAD (BIENES) ","BATERIA",382,400,390]
[null,"B131","BATERIA HP TE03XL- TE04 - INTERNA",null,"UNIDAD (BIENES) ","BATERIA",376,400,390]
[null,"B077","BATERIA HP PI06 -  ENVY 14 - ENVY 15",null,"UNIDAD (BIENES) ","BATERIA",{"$f":"15.8*9.75","v":154.05},220,200]
[null,"B217","BATERIA HP OA04 ORIGINAL",null,"UNIDAD (BIENES) ","BATERIA",233,310,285]
[null,"B218","BATERIA HP HS04 ORIGINAL",null,"UNIDAD (BIENES) ","BATERIA",346.5,350,350]
[null,"B219","BATERIA HP JC04 ORIGINAL",null,"UNIDAD (BIENES) ","BATERIA",346.5,350,350]
[null,"B144","BATERIA LENOVO G460 - G560 - Z560 - V360 - Z460",null,"UNIDAD (BIENES) ","BATERIA",{"$f":"15.4*9.75","v":150.15},220,195]
[null,"B146","BATERIA LENOVO IdeaPad S400",null,"UNIDAD (BIENES) ","BATERIA",438,450,450]
[null,"B152","BATERIA LENOVO G480 - Y480 - G580",null,"UNIDAD (BIENES) ","BATERIA",291,330,320]
[null,"B319","BATERIA LENOVO T480 20L5",null,"UNIDAD (BIENES) ","BATERIA",506,530,530]
[null,"B161","BATERIA LENOVO L16M2PB1 - L16C2PB2 INTERNA",null,"UNIDAD (BIENES) ","BATERIA",299,330,310]
[null,"B145","BATERIA LENOVO G400s G405s G410s G500s",null,"UNIDAD (BIENES) ","BATERIA",291,320,300]
[null,"B156","BATERIA LENOVO L15S3A02-3S1P - IdeaPad 110-15ISK - INTERNA",null,"UNIDAD (BIENES) ","BATERIA",343,370,360]
[null,"B147","BATERIA LENOVO T430 - T530 - W530",null,"UNIDAD (BIENES) ","BATERIA",347,370,360]
[null,"B171","BATERIA SAMSUNG Q308 - Aapb9nc6b - R519",null,"UNIDAD (BIENES) ","BATERIA",{"$f":"15.4*9.75","v":150.15},220,195]
[null,"B176","BATERIA SONY VGP-BPS22",null,"UNIDAD (BIENES) ","BATERIA",413,420,415]
[null,"B177","BATERIA SONY VGP-BPS26",null,"UNIDAD (BIENES) ","BATERIA",397,405,405]
[null,"B178","BATERIA SONY VGP-BPS35",null,"UNIDAD (BIENES) ","BATERIA",335,345,345]
[null,"B180","BATERIA TOSHIBA PA3534u - 3533 - A200 - L300",null,"UNIDAD (BIENES) ","BATERIA",236,230,200]
[null,"B181","BATERIA TOSHIBA PA3817u - A665 - C650",null,"UNIDAD (BIENES) ","BATERIA",154,220,195]
[null,"B182","BATERIA TOSHIBA PA5024 - C850 - L800 - C50",null,"UNIDAD (BIENES) ","BATERIA",162,220,195]
[null,"B183","BATERIA TOSHIBA PA5185 - C55tb - PA5195 C50d",null,"UNIDAD (BIENES) ","BATERIA",148,220,195]
[null,"B193","BATERIA TOSHIBA PA5212U - A40 - A50 - C40",null,"UNIDAD (BIENES) ","BATERIA",294,320,300]
[null,"B199","BATERIA TOSHIBA S955-SP5264SM - SATELLITE S900 - PA5077U   PA5076",null,"UNIDAD (BIENES) ","BATERIA",270,295,280]
[null,"B188","BATERIA TOSHIBA PA5107- 1BRS - L45 - L55 - INTERNA",null,"UNIDAD (BIENES) ","BATERIA",343,360,350]
[null,"B127","BATERIA HP SR03 / SR04 INTERNA",null,"UNIDAD (BIENES) ","BATERIA",250,330,310]
[null,"B111","BATERIA HP NP03XL INTERNA",null,"UNIDAD (BIENES) ","BATERIA",null,350,330]
[null,"B057","BATERIA HP G5M10 GENERICO INTERNO",null,"UNIDAD (BIENES) ","BATERIA",null,350,330]
[null,"B356","BATERIA HP G5M10 ORIGINAL INTERNO",null,"UNIDAD (BIENES) ","BATERIA",null,450,420]
[null,"B249","AC AL15A32 - E5-472G INTERNA",null,"UNIDAD (BIENES) ","BATERIA",217,270,250]
[null,"B033","ASU A41N1424 - GL552 - ROG ZX50",null,"UNIDAD (BIENES) ","BATERIA",180.2,220,200]
[null,"B110","BATERIA HP SE03XL INTERNO",null,"UNIDAD (BIENES) ","BATERIA",{"$f":"27.5*9.75","v":268.125},350,320]
[null,"B123","BATERIA HP TF03XL INTERNO",null,"UNIDAD (BIENES) ","BATERIA",{"$f":"26.5*9.75","v":258.375},350,320]
[null,"T001","TECLADO ESPAÑOL AC - 4710-4520-5520-5720-4920- 5710-5320 NEGRO",null,"UNIDAD (BIENES) ","TECLADO",0,150,145]
[null,"T007","TECLADO ESPAÑOL AC - V5-431/471 NEGRO",null,"UNIDAD (BIENES) ","TECLADO",0,150,140]
[null,"T004","TECLADO ESPAÑOL AC - ASPIRE E5-573G E5-722 NEGRO\nBOTON DE ENCENDIDO",null,"UNIDAD (BIENES) ","TECLADO",132.6,15,150]
[null,"T009","TECLADO ESPAÑOL AC - 5810-5742-5810T-5253 NEGRO",null,"UNIDAD (BIENES) ","TECLADO",132.6,150,150]
[null,"T137","TECLADO ESPAÑOL AC - ES1-131/ ES1-311",null,"UNIDAD (BIENES) ","TECLADO",0,150,140]
[null,"T185","TECLADO ESPAÑOL ASU X202E - S200 - X201E",null,"UNIDAD (BIENES) ","TECLADO",0,150,140]
[null,"T012","TECLADO ESPAÑOL ASU - K53U X53 NEGRO",null,"UNIDAD (BIENES) ","TECLADO",0,150,140]
[null,"T013","TECLADO ESPAÑOL ASU - K55 / K55V / K55XI",null,"UNIDAD (BIENES) ","TECLADO",0,150,140]
[null,"T014","TECLADO ESPAÑOL ASU - ROG GL552-GL552J-GL552JX- GL551\nILUMINADO",null,"UNIDAD (BIENES) ","TECLADO",0,380,380]
[null,"T016","TECLADO ESPAÑOL ASU - X541 - X541U - X541UA - X541UV NEGRO",null,"UNIDAD (BIENES) ","TECLADO",0,150,140]
[null,"T017","TECLADO ESPAÑOL ASU - X550L NEGRO",null,"UNIDAD (BIENES) ","TECLADO",0,150,140]
[null,"T018","TECLADO ESPAÑOL ASU - X551CA NEGRO",null,"UNIDAD (BIENES) ","TECLADO",0,150,140]
[null,"T152","TECLADO ESPAÑOL ASU A556U - L556U - X556",null,"UNIDAD (BIENES) ","TECLADO",0,150,145]
[null,"T178","TECLADO ASUS X420U GRIS",null,"UNIDAD (BIENES) ","TECLADO",0,300,300]
[null,"T196","TECLADO ESPAÑOL ASU - X407 - X407U - X407MA - NEGRO - NO NUMERICO",null,"UNIDAD (BIENES) ","TECLADO",130,150,150]
[null,"T201","TECLADO ESPAÑOL ASU - X52 - X54H - N52 - N60 / NSK- UGC0S - NEGRO - NUMERICO",null,"UNIDAD (BIENES) ","TECLADO",0,150,140]
[null,"T176","TECLADO ASUS X420U NEGRO",null,"UNIDAD (BIENES) ","TECLADO",0,190,190]
[null,"T103","TECLADO INGLES ASU - Q551L Q503U",null,"UNIDAD (BIENES) ","TECLADO",0,150,140]
[null,"T170","TECLADO INGLES ASUS V090562BS1 - P/N:0KN0-EL 1US01 CON FRAME",null,"UNIDAD (BIENES) ","TECLADO",132.6,150,145]
[null,"T171","TECLADO INGLES ASUS V090562BS1 - P/N:0KN0-EL 1US01 with frame - DISEÑO NORMAL - SIN FRAME",null,"UNIDAD (BIENES) ","TECLADO",132.6,150,145]
[null,"T166","TECLADO ESPAÑOL ASU - X555 - NUMERICO",null,"UNIDAD (BIENES) ","TECLADO",null,150,145]
[null,"T186","TECLADO ESPAÑOL DL INSPIRON 3480 - 7380 - 7468",null,"UNIDAD (BIENES) ","TECLADO",null,160,160]
[null,"T183","TECLADO ESPAÑOL DL - E7240 - E7440 - NEGRO NO NUMERICO - ILUMINADO",null,"UNIDAD (BIENES) ","TECLADO",null,245,245]
[null,"T019","TECLADO ESPAÑOL DL - INSP15-3000 -15 3541-15 3542 NEGRO",null,"UNIDAD (BIENES) ","TECLADO",0,150,145]
[null,"T020","TECLADO ESPAÑOL DL - INSPIRON 15-3521 NEGRO",null,"UNIDAD (BIENES) ","TECLADO",0,150,145]
[null,"T026","TECLADO ESPAÑOL DL - N5110 -15R MODERNO TECLA SEPAR NEGRO",null,"UNIDAD (BIENES) ","TECLADO",0,160,160]
[null,"T021","TECLADO ESPAÑOL DL - INSPIRON 15-3501",null,"UNIDAD (BIENES) ","TECLADO",175.5,190,190]
[null,"T028","TECLADO ESPAÑOL H - 14-BS / 14BS / 14-bs011la NEGRO INTERNO /\nENTER RECTO",null,"UNIDAD (BIENES) ","TECLADO",132.6,150,150]
[null,"T030","TECLADO ESPAÑOL H - 14N-14R-14D (2 PERNOS) NEGRO - FRAME",null,"UNIDAD (BIENES) ","TECLADO",135.20000000000002,150,150]
[null,"T033","TECLADO ESPAÑOL H - 15-AC. 15AC - 250 G4. 255 G4 NEGRO",null,"UNIDAD (BIENES) ","TECLADO",136.5,155,155]
[null,"T034","TECLADO ESPAÑOL H - 15E / 15N # NEGRO - FRAME",null,"UNIDAD (BIENES) ","TECLADO",0,0,0]
[null,"T039","TECLADO ESPAÑOL H - 15-DA / 15DA / 15-BD /15BD\n/15CN",null,"UNIDAD (BIENES) ","TECLADO",135.20000000000002,150,150]
[null,"T037","TECLADO ESPAÑOL H - 15BS - 15-BS / 15 BS - 15-BW / 250 G6 ENTER RECTO",null,"UNIDAD (BIENES) ","TECLADO",135.20000000000002,150,145]
[null,"T040","TECLADO ESPAÑOL H - 14AC - 14AF - 250 G5 NEGRO",null,"UNIDAD (BIENES) ","TECLADO",132.6,150,150]
[null,"T032","TECLADO ESPAÑOL H - 14-DA / 14DA / 14-CK / 14CK",null,"UNIDAD (BIENES) ","TECLADO",132.6,150,150]
[null,"T045","TECLADO ESPAÑOL H - PROBOOK 450 G0 / 450 G1 / 455 G1 / 470 G1 NEGRO",null,"UNIDAD (BIENES) ","TECLADO",0,165,165]
[null,"T043","TECLADO ESPAÑOL H - 450 G3 NEGRO - FRAME",null,"UNIDAD (BIENES) ","TECLADO",0,165,165]
[null,"T049","TECLADO ESPAÑOL H - 4530S/4535S/4730S FRAME PLATA",null,"UNIDAD (BIENES) ","TECLADO",0,150,140]
[null,"T161","TECLADO ESPAÑOL H - 4040S / 4540S / 4540 FRAME GRIS",null,"UNIDAD (BIENES) ","TECLADO",0,160,160]
[null,"T192","TECLADO ESPAÑOL H - 4040S / 4540S / 4540 FRAME NEGRO",null,"UNIDAD (BIENES) ","TECLADO",0,160,160]
[null,"T050","TECLADO ESPAÑOL H - 650 G1. 655 G1 NEGRO",null,"UNIDAD (BIENES) ","TECLADO",158.6,170,170]
[null,"T052","TECLADO ESPAÑOL H - CQ42 -G42 NEGRO",null,"UNIDAD (BIENES) ","TECLADO",132.6,150,150]
[null,"T065","TECLADO ESPAÑOL H - DV6-7000 # NEGRO - FRAME",null,"UNIDAD (BIENES) ","TECLADO",0,160,160]
[null,"T068","TECLADO ESPAÑOL H - G4-2000.G4-2205 NEGRO",null,"UNIDAD (BIENES) ","TECLADO",0,150,145]
[null,"T073","TECLADO ESPAÑOL H - PAVILION 13-s104la-13-s151la NEGRO",null,"UNIDAD (BIENES) ","TECLADO",0,150,150]
[null,"T038","TECLADO ESPAÑOL H - PAVILION 15ab 15-ab 15t 15z NEGRO",null,"UNIDAD (BIENES) ","TECLADO",132.6,150,150]
[null,"T181","TECLADO INGLES H - PROBOOK 640 G1",null,"UNIDAD (BIENES) ","TECLADO",0,0,0]
[null,"T066","TECLADO ESPAÑOL H - DV7-1000 - PLATEADO",null,"UNIDAD (BIENES) ","TECLADO",0,150,120]
[null,"T058","TECLADO ESPAÑOL H - DV2000 / DV2500 / V3000 / V3500",null,"UNIDAD (BIENES) ","TECLADO",null,150,140]
[null,"T162","TECLADO ESPAÑOL H DV6000",null,"UNIDAD (BIENES) ","TECLADO",null,150,140]
[null,"T086","TECLADO ESPAÑOL LENO - G40-70 NEGRO",null,"UNIDAD (BIENES) ","TECLADO",0,150,145]
[null,"T087","TECLADO ESPAÑOL LENO - E47G-E43-E47 NEGRO -\nMAGISTERIO",null,"UNIDAD (BIENES) ","TECLADO",0,150,145]
[null,"T093","TECLADO ESPAÑOL LENO - 110-15ISK / FRAME - BOTON DE ENCENDIDO",null,"UNIDAD (BIENES) ","TECLADO",0,180,180]
[null,"T094","TECLADO ESPAÑOL LENO - 100-15IBD - 6385H-SP NEGRO",null,"UNIDAD (BIENES) ","TECLADO",162.5,180,170]
[null,"T101","TECLADO ESPAÑOL LENO - 320-15ABR - 320-15ISK - BOTON DE ENCENDIDO",null,"UNIDAD (BIENES) ","TECLADO",143,150,150]
[null,"T099","TECLADO ESPAÑOL LENO - V330-14ISK / SIN BOTON ENCENDIDO",null,"UNIDAD (BIENES) ","TECLADO",132.6,150,150]
[null,"T189","TECLADO ESPAÑOL SAM - R462 - RV408 - RV410",null,"UNIDAD (BIENES) ","TECLADO",0,150,140]
[{"$nulls":4},"UNIDAD (BIENES) ","TECLADO",null,150,140]
[null,"T131","TECLADO ESPAÑOL TOSHI - A305-A200-A205-L300-L305 NEGRO",null,"UNIDAD (BIENES) ","TECLADO",132.6,150,150]
[null,"T135","TECLADO ESPAÑOL TOSHI - C50-A / C55-A / C55D-A NEGRO",null,"UNIDAD (BIENES) ","TECLADO",0,180,180]
[null,"T136","TECLADO ESPAÑOL TOSHI - L50-B / L50d / S50-B - MP- 13R86F0-9201 NEGRO",null,"UNIDAD (BIENES) ","TECLADO",0,150,150]
[null,"T140","TECLADO ESPAÑOL TOSHI - L645-C645-C605 NEGRO",null,"UNIDAD (BIENES) ","TECLADO",0,150,145]
[null,"T141","TECLADO ESPAÑOL TOSHI - L665-C650-C655 L775 # NEGRO - FRAME",null,"UNIDAD (BIENES) ","TECLADO",132.6,150,150]
[null,"T142","TECLADO ESPAÑOL TOSHI - L800.C800.C845.L845 NEGRO TEC/SEP",null,"UNIDAD (BIENES) ","TECLADO",0,150,145]
[null,"T144","TECLADO ESPAÑOL TOSHI - NB205-NB200-NB500- NB505 NEGRO",null,"UNIDAD (BIENES) ","TECLADO",0,150,140]
[null,"T146","TECLADO ESPAÑOL TOSHI - R700-U800-U840 ILUMINADO NEGRO",null,"UNIDAD (BIENES) ","TECLADO",0,165,165]
[null,"T147","TECLADO ESPAÑOL TOSHI - S55-A / S55-b5292 # NEGRO - FRAME",null,"UNIDAD (BIENES) ","TECLADO",171.6,175,175]
[null,"T148","TECLADO ESPAÑOL TOSHI - S55-A5279 S55-A5292NR T/J NEGRO",null,"UNIDAD (BIENES) ","TECLADO",171.6,175,175]
[null,"T149","TECLADO ESPAÑOL TOSHI - SAT. C850 / L850 / L855 # - NEGRO -\nFRAME",null,"UNIDAD (BIENES) ","TECLADO",141.70000000000002,150,150]
[null,"T85","TONER PRINTLINE UNIVERSAL CB435/436/CE285/278A/CRG128. 2000 PAG. HP/CANON",null,"UNIDAD (BIENES) ","TONER",67.6,115,95]
[null,"T83","TONER PRINTLINE CF283A. 1500 PAG. HP",null,"UNIDAD (BIENES) ","TONER",68.89999999999999,120,100]
[null,"T83X","TONER PRINTLINE CF283X/CGR137/337/737. 2200 PAG. HP/CANON",null,"UNIDAD (BIENES) ","TONER",81.8,135,115]
[null,"T81","TONER PRINTLINE CF281A. 10500 PAG. HP",null,"UNIDAD (BIENES) ","TONER",381.4,420,400]
[null,"T87","TONER PRINTLINE CF287A. 9000 PAG. HP",null,"UNIDAD (BIENES) ","TONER",135.2,175,155]
[null,"T89","TONER PRINTLINE CF289A. 5000 PAG. HP",null,"UNIDAD (BIENES) ","TONER",596.3000000000001,640,620]
[null,"T26","TONER PRINTLINE CF226A. 3100 PAG. HP",null,"UNIDAD (BIENES) ","TONER",103.3,150,130]
[null,"T26X","TONER PRINTLINE CF226X. 9000 PAG. HP",null,"UNIDAD (BIENES) ","TONER",126.30000000000001,185,165]
[null,"T17","TONER PRINTLINE CF217A. 1600 PAG. HP",null,"UNIDAD (BIENES) ","TONER",68.8,150,130]
[null,"T58C","TONER PRINTLINE CF258A. 3000 PAG. HP",null,"UNIDAD (BIENES) ","TONER",0,20]
[null,"T58C","TONER PRINTLINE CF258A. 3000 PAG. HP      *****SIN CHIP*****",null,"UNIDAD (BIENES) ","TONER",103.3,160,140]
[null,"T58X","TONER PRINTLINE CF258X. 10000 PAG. HP      *****SIN CHIP*****",null,"UNIDAD (BIENES) ","TONER",136.8,205,185]
[null,"T79","TONER PRINTLINE CF279A. 1000 PAG. HP",null,"UNIDAD (BIENES) ","TONER",68.8,140,120]
[null,"T30","TONER PRINTLINE CF230A. 1600 PAG. HP",null,"UNIDAD (BIENES) ","TONER",68.89999999999999,130,110]
[null,"T30X","TONER PRINTLINE CF230X. 3500 PAG. HP",null,"UNIDAD (BIENES) ","TONER",80.3,160,140]
[null,"T37","TONER PRINTLINE CF237A BLACK 11000 PAG.HP",null,"UNIDAD (BIENES) ","TONER",321.70000000000005,370,350]
[null,"T12","TONER PRINTLINE Q2612A/FX9/FX10/CAN 103/104/703. 2000 PAG. HP/CANON",null,"UNIDAD (BIENES) ","TONER",80.3,135,115]
[null,"T55","TONER PRINTLINE CE255A. 6000 PAG. HP",null,"UNIDAD (BIENES) ","TONER",149.3,200,180]
[null,"T55X","TONER PRINTLINE CE255X. 12500 PAG. HP",null,"UNIDAD (BIENES) ","TONER",206.8,260,240]
[null,"T06","TONER PRINTLINE T06. IMAGERUNNER 1643i/1643iF/ IMAGECLASS X 1643 II Series. 20.500 PAG. CANON ****SIN CHIP****",null,"UNIDAD (BIENES) ","TONER",283.8,345,325]
[null,"T13","TONER PRINTLINE UNIVERSAL Q2613A/Q2624A/C7115A. 2500 PAG. HP",null,"UNIDAD (BIENES) ","TONER",91.8,130,110]
[null,"T330","TONER PRINTLINE W1330A (330A). 5000 PAG. HP",null,"UNIDAD (BIENES) ","TONER",281.70000000000005,340,320]
[null,"T105","TONER PRINTLINE W1105A. 1000 PAG. HP",null,"UNIDAD (BIENES) ","TONER",124.2,205,185]
[null,"T151","TONER PRINTLINE W1510A / 151A. 3050 PAG. HP     *****SIN CHIP****",null,"UNIDAD (BIENES) ","TONER",91.8,130,110]
[null,"T145","TONER PRINTLINE W1450A / 145A. 1700 PAG. HP     *****SIN CHIP****",null,"UNIDAD (BIENES) ","TONER",80.3,130,110]
[null,"T48","TONER PRINTLINE CF248A. 1000 PAG. HP",null,"UNIDAD (BIENES) ","TONER",80.3,140,120]
[null,"T390","TONER PRINTLINE CE390A/CC364A. 10000 PAG. HP",null,"UNIDAD (BIENES) ","TONER",206.8,260,240]
[null,"T80","TONER PRINTLINE CE505A/280A / CANON CGR-120.  2300 PAG. HP",null,"UNIDAD (BIENES) ","TONER",91.8,140,120]
[null,"T80X","TONER PRINTLINE CE505X /280X / CANON CGR-120.  6500 PAG. HP",null,"UNIDAD (BIENES) ","TONER",108.9,170,150]
[null,"T540","TONER PRINTLINE CB540A/CE320A/CF210X. BLACK 125A/128A/131A. 2200 PAG. HP",null,"UNIDAD (BIENES) ","TONER",119.7,165,145]
[null,"T541","TONER PRINTLINE CB541A/CE321A/CF211A. CYAN 125A/128A/131A. 1400 PAG. HP",null,"UNIDAD (BIENES) ","TONER",114.3,165,145]
[null,"T542","TONER PRINTLINE CB542A/CE322A/CF212A. YELLOW 125A/128A/131A. 1400 PAG. HP",null,"UNIDAD (BIENES) ","TONER",114.3,165,145]
[null,"T543","TONER PRINTLINE CB543A/CE323A/CF213A. MAGENTA 125A/128A/131A. 1400 PAG. HP",null,"UNIDAD (BIENES) ","TONER",114.3,165,145]
[null,"T530","TONER PRINTLINE CC530A/CF380X/CE410X BLACK 304A/312X/305X. 3500 PAG. HP",null,"UNIDAD (BIENES) ","TONER",137.79999999999998,180,160]
[null,"T531","TONER PRINTLINE CC531A/CF381A/CE411A CYAN 304A/312A/305A. 2800 PAG. HP",null,"UNIDAD (BIENES) ","TONER",130.5,180,160]
[null,"T532","TONER PRINTLINE CC532A/CF382A/CE412A YELLOW 304A/312A/305A. 2800 PAG. HP",null,"UNIDAD (BIENES) ","TONER",130.5,180,160]
[null,"T533","TONER PRINTLINE CC533A/CF383A/CE413A MAGENTA 304A/312A/305A. 2800 PAG. HP",null,"UNIDAD (BIENES) ","TONER",130.5,180,160]
[null,"T250","TONER PRINTLINE CE250A/CE400A BLACK 504A / 507A. 5500 PAG. HP",null,"UNIDAD (BIENES) ","TONER",229.8,280,260]
[null,"T251","TONER PRINTLINE CE251A/CE401A CYAN 504A / 507A. 6000 PAG. HP",null,"UNIDAD (BIENES) ","TONER",229.8,280,260]
[null,"T252","TONER PRINTLINE CE252A/CE402A YELLOW 504A / 507A. 6000 PAG. HP",null,"UNIDAD (BIENES) ","TONER",229.8,280,260]
[null,"T253","TONER PRINTLINE CE253A/CE403A MAGENTA 504A / 507A. 6000 PAG. HP",null,"UNIDAD (BIENES) ","TONER",229.8,280,260]
[null,"T310","TONER PRINTLINE CE310/CF350A BLACK 126A/130A. 1300 PAG. HP",null,"UNIDAD (BIENES) ","TONER",70.9,130,110]
[null,"T311","TONER PRINTLINE CE311/CF351A CYAN 126A/130A. 1000 PAG. HP",null,"UNIDAD (BIENES) ","TONER",70.9,130,110]
[null,"T312","TONER PRINTLINE CE312/CF352A YELLOW 126A/130A. 1000 PAG. HP",null,"UNIDAD (BIENES) ","TONER",70.9,130,110]
[null,"T313","TONER PRINTLINE CE313/CF353A MAGENTA 126A/130A. 1000 PAG. HP",null,"UNIDAD (BIENES) ","TONER",70.9,130,110]
[null,"T400","TONER PRINTLINE CF400A BLACK/ 201A. 1500 PAG. HP",null,"UNIDAD (BIENES) ","TONER",125.8,170,150]
[null,"T401","TONER PRINTLINE CF401A CYAN/ 201A. 1400 PAG. HP",null,"UNIDAD (BIENES) ","TONER",125.8,170,150]
[null,"T402","TONER PRINTLINE CF402A YELLOW/ 201A. 1400 PAG. HP",null,"UNIDAD (BIENES) ","TONER",125.8,170,150]
[null,"T403","TONER PRINTLINE CF403A MAGENTA/ 201A. 1400 PAG. HP",null,"UNIDAD (BIENES) ","TONER",125.8,170,150]
[null,"T510","TONER PRINTLINE CF510A BLACK / 204A. 1100 PAG. HP",null,"UNIDAD (BIENES) ","TONER",114.80000000000001,160,140]
[null,"T511","TONER PRINTLINE CF511A CYAN / 204A. 900 PAG. HP",null,"UNIDAD (BIENES) ","TONER",114.7,160,140]
[null,"T512","TONER PRINTLINE CF512A YELLOW / 204A. 900 PAG. HP",null,"UNIDAD (BIENES) ","TONER",114.80000000000001,160,140]
[null,"T513","TONER PRINTLINE CF513A MAGENTA / 204A. 900 PAG. HP",null,"UNIDAD (BIENES) ","TONER",114.80000000000001,160,140]
[null,"T206","TONER UNIVERSAL PRINTLINE SERIE 206/215/414/415  BLACK. 2400 PAG. HP   ****SIN CHIP****",null,"UNIDAD (BIENES) ","TONER",114.80000000000001,170,150]
[null,"T206C","TONER UNIVERSAL PRINTLINE SERIE 206/215/414/415  CYAN. 2100 PAG. HP ****SIN CHIP****",null,"UNIDAD (BIENES) ","TONER",114.80000000000001,170,150]
[null,"T206M","TONER UNIVERSAL PRINTLINE SERIE 206/215/414/415  MAGENTA. 2100 PAG. HP  ****SIN CHIP****",null,"UNIDAD (BIENES) ","TONER",114.80000000000001,170,150]
[null,"T206Y","TONER UNIVERSAL PRINTLINE SERIE 206/215/414/415  YELLOW. 2100 PAG. HP ****SIN CHIP****",null,"UNIDAD (BIENES) ","TONER",114.80000000000001,170,150]
[null,"T360","TONER PRINTLINE CF360A BLACK / 508A. 6000 PAG. HP",null,"UNIDAD (BIENES) ","TONER",275.79999999999995,310,290]
[null,"T361","TONER PRINTLINE CF361A CYAN / 508A. 5000 PAG. HP",null,"UNIDAD (BIENES) ","TONER",271.8,310,290]
[null,"T362","TONER PRINTLINE CF362A YELLOW / 508A. 5000 PAG. HP",null,"UNIDAD (BIENES) ","TONER",271.8,310,290]
[null,"T363","TONER PRINTLINE CF363A MAGENTA / 508A. 5000 PAG. HP",null,"UNIDAD (BIENES) ","TONER",271.8,310,290]
[null,"T410","TONER PRINTLINE CF410A BLACK / 410A. 2300 PAG. HP",null,"UNIDAD (BIENES) ","TONER",126.30000000000001,170,150]
[null,"T411","TONER PRINTLINE CF411A CYAN / 410A. 2300 PAG. HP",null,"UNIDAD (BIENES) ","TONER",126.30000000000001,170,150]
[null,"T412","TONER PRINTLINE CF412A YELLOW / 410A. 2300 PAG. HP",null,"UNIDAD (BIENES) ","TONER",126.30000000000001,170,150]
[null,"T413","TONER PRINTLINE CF413A MAGENTA / 410A. 2300 PAG. HP",null,"UNIDAD (BIENES) ","TONER",126.30000000000001,170,150]
[null,"T2020","TONER PRINTLINE W2020A/414A BLACK. 2400 PAG. HP",null,"UNIDAD (BIENES) ","TONER",0,20,0]
[null,"T2021","TONER PRINTLINE W2021A/414A CYAN. 2100 PAG. HP",null,"UNIDAD (BIENES) ","TONER",0,20,0]
[null,"T2022","TONER PRINTLINE W2022A/414A YELLOW. 2100 PAG. HP",null,"UNIDAD (BIENES) ","TONER",0,20,0]
[null,"T2023","TONER PRINTLINE W2023A/414A MAGENTA. 2100 PAG. HP",null,"UNIDAD (BIENES) ","TONER",0,20,0]
[null,"T2020C","TONER PRINTLINE W2020A/414A BLACK. 2400 PAG. HP      ****SIN CHIP****",null,"UNIDAD (BIENES) ","TONER",114.80000000000001,165,145]
[null,"T2021C","TONER PRINTLINE W2021A/414A CYAN. 2100 PAG. HP      ****SIN CHIP****",null,"UNIDAD (BIENES) ","TONER",114.80000000000001,165,145]
[null,"T2022C","TONER PRINTLINE W2022A/414A YELLOW. 2100 PAG. HP      ****SIN CHIP****",null,"UNIDAD (BIENES) ","TONER",114.80000000000001,165,145]
[null,"T2023C","TONER PRINTLINE W2023A/414A MAGENTA. 2100 PAG. HP      ****SIN CHIP****",null,"UNIDAD (BIENES) ","TONER",114.80000000000001,165,145]
[null,"T2110","TONER PRINTLINE W2110A / SERIE 206A  BLACK. 1350 PAG. HP                      ****SIN CHIP****",null,"UNIDAD (BIENES) ","TONER",114.80000000000001,165,145]
[null,"T2111","TONER PRINTLINE W2111A / SERIE 206A  CYAN. 1250 PAG. HP                        ****SIN CHIP****",null,"UNIDAD (BIENES) ","TONER",114.80000000000001,165,145]
[null,"T2112","TONER PRINTLINE W2112 A / SERIE 206A  YELLOW. 1250 PAG. HP                  ****SIN CHIP****",null,"UNIDAD (BIENES) ","TONER",114.80000000000001,165,145]
[null,"T2113","TONER PRINTLINE W2113 A / SERIE 206A  MAGENTA. 1250 PAG. HP             ****SIN CHIP****",null,"UNIDAD (BIENES) ","TONER",114.80000000000001,165,145]
[null,"T2310","TONER PRINTLINE W2310A / SERIE 215A  BLACK. 1050 PAG. HP                      ****SIN CHIP****",null,"UNIDAD (BIENES) ","TONER",114.80000000000001,165,145]
[null,"T2311","TONER PRINTLINE W2311A / SERIE 215A  CYAN. 850 PAG. HP                          ****SIN CHIP****",null,"UNIDAD (BIENES) ","TONER",114.80000000000001,165,145]
[null,"T2312","TONER PRINTLINE W2312A / SERIE 215A  YELLOW. 850 PAG. HP                     ****SIN CHIP****",null,"UNIDAD (BIENES) ","TONER",114.80000000000001,165,145]
[null,"T2313","TONER PRINTLINE W2313A / SERIE 215A  MAGENTA. 850 PAG. HP                 ****SIN CHIP****",null,"UNIDAD (BIENES) ","TONER",114.80000000000001,165,145]
[null,"T500","TONER PRINTLINE CF500A. SERIE 202A / CANON 054 BLACK. 1400 PAG. HP",null,"UNIDAD (BIENES) ","TONER",117.2,165,145]
[null,"T501","TONER PRINTLINE CF501A. SERIE 202A / CANON 054 CYAN. 1300 PAG. HP",null,"UNIDAD (BIENES) ","TONER",117.2,165,145]
[null,"T502","TONER PRINTLINE CF502A. SERIE 202A / CANON 054 YELLOW. 1300 PAG. HP",null,"UNIDAD (BIENES) ","TONER",117.2,165,145]
[null,"T503","TONER PRINTLINE CF503A. SERIE 202A / CANON 054 MAGENTA. 1300 PAG. HP",null,"UNIDAD (BIENES) ","TONER",117.2,165,145]
[null,"T49","TONER PRINTLINE Q5949A/Q7553A. 2500 PAG. HP",null,"UNIDAD (BIENES) ","TONER",97.69999999999999,160,140]
[null,"T49X","TONER PRINTLINE Q5949X/Q7553X. 6000 PAG. HP",null,"UNIDAD (BIENES) ","TONER",123.69999999999999,200,180]
[null,"T360","TONER PRINTLINE TN360. 2600 PAG. BROTHER",null,"UNIDAD (BIENES) ","TONER",73,140,120]
[null,"T450","TONER PRINTLINE TN450. 2600 PAG. BROTHER",null,"UNIDAD (BIENES) ","TONER",70.4,140,120]
[null,"T580","TONER PRINTLINE TN580. 8000 PAG. BROTHER",null,"UNIDAD (BIENES) ","TONER",125.1,160,140]
[null,"T650","TONER PRINTLINE TN650/3280. 8000 PAG. BROTHER",null,"UNIDAD (BIENES) ","TONER",66.9,130,110]
[null,"T750","TONER PRINTLINE TN750/3380. 8000 PAG. BROTHER",null,"UNIDAD (BIENES) ","TONER",109.5,160,140]
[null,"T850","TONER PRINTLINE TN850. 8000 PAG. BROTHER",null,"UNIDAD (BIENES) ","TONER",117.2,160,140]
[null,"T101","TONER PRINTLINE MLT-D101S/ML2161. 1500 PAG. SAMSUNG",null,"UNIDAD (BIENES) ","TONER",80.3,130,110]
[null,"T111","TONER PRINTLINE MLT-D111S/M52020. 1000 PAG. SAMSUNG",null,"UNIDAD (BIENES) ","TONER",80.3,130,110]
[null,"T104","TONER PRINTLINE MLT-D104S/ML1660. 1500 PAG SAMSUNG",null,"UNIDAD (BIENES) ","TONER",114.80000000000001,160,140]
[null,"T108","TONER PRINTLINE MLT-D108S/ML1640. 1500 PAG. SAMSUNG",null,"UNIDAD (BIENES) ","TONER",126.30000000000001,170,150]
[null,"T109","TONER PRINTLINE MLT-D109S/SCX4300. 2000 PAG. SAMSUNG",null,"UNIDAD (BIENES) ","TONER",126.30000000000001,170,150]
[null,"T116","TONER PRINTLINE MLT-D116S/M2625. 1200 PAG. SAMSUNG",null,"UNIDAD (BIENES) ","TONER",86.19999999999999,130,110]
[null,"T406B","TONER PRINTLINE CLT-C406S BLACK. 1500 PAG. SAMSUNG",null,"UNIDAD (BIENES) ","TONER",103.3,155,135]
[null,"T406C","TONER PRINTLINE CLT-C406S CYAN. 1000 PAG. SAMSUNG",null,"UNIDAD (BIENES) ","TONER",103.3,155,135]
[null,"T406M","TONER PRINTLINE CLT-M406S MAGENTA. 1000 PAG. SAMSUNG",null,"UNIDAD (BIENES) ","TONER",103.3,155,135]
[null,"T406Y","TONER PRINTLINE CLT-Y406S. YELLOW. 1000 PAG. SAMSUNG",null,"UNIDAD (BIENES) ","TONER",103.3,155,135]
[null,"T18","TONER PRINTLINE GPR-18- 8300 PAG. CANON",null,"UNIDAD (BIENES) ","TONER",91.8,150,130]
[null,"T22","TONER PRINTLINE GPR-22 / NPG32 / EXV18 . 8400 PAG. CANON",null,"UNIDAD (BIENES) ","TONER",106.8,160,140]
[null,"T35","TONER PRINTLINE GPR-35. 14600 PAG. CANON",null,"UNIDAD (BIENES) ","TONER",91.8,150,130]
[null,"T54","TONER PRINTLINE GPR-54. 17600 PAG. CANON",null,"UNIDAD (BIENES) ","TONER",206.8,260,240]
[null,"T650L","TONER PRINTLINE T650 BLACK. 36000 PAG. LEXMARK",null,"UNIDAD (BIENES) ","TONER",473,515,495]
[null,"T3320X","TONER PRINTLINE 3320X. 11000 PAG. XEROX",null,"UNIDAD (BIENES) ","TONER",201.5,250,230]
[null,"T3550X","TONER PRINTLINE 3550X . 11000 PAG. XEROX",null,"UNIDAD (BIENES) ","TONER",206.70000000000002,250,230]
[null,"T3600","TONER PRINTLINE 3600A. 14000 PAG. XEROX",null,"UNIDAD (BIENES) ","TONER",0,20,0]
[null,"T4622","TONER PRINTLINE 4622A. 13000 PAG. XEROX",null,"UNIDAD (BIENES) ","TONER",221,260,240]
[null,"T4622X","TONER PRINTLINE 4622X BLACK. 30000 PAG. XEROX",null,"UNIDAD (BIENES) ","TONER",344.09999999999997,385,365]
[null,"T6000B","TONER PRINTLINE 6000/6010/6015 BLACK. 2.000 PAG. XEROX",null,"UNIDAD (BIENES) ","TONER",51.7,100,80]
[null,"T6000C","TONER PRINTLINE 6000/6010/6015 CYAN. 1000 PAG. XEROX",null,"UNIDAD (BIENES) ","TONER",51.7,100,80]
[null,"T6000M","TONER PRINTLINE 6000/6010/6015 MAGENTA. 1000 PAG. XEROX",null,"UNIDAD (BIENES) ","TONER",51.7,100,80]
[null,"T6000Y","TONER PRINTLINE 6000/6010/6015 YELLOW. 1000 PAG. XEROX",null,"UNIDAD (BIENES) ","TONER",51.7,100,80]
[null,"T19A","UNIDAD DE IMAGEN PRINTLINE  CF219A. 12000 PAG. HP",null,"UNIDAD (BIENES) ","TONER",91.8,140,120]
[null,"T32A","UNIDAD DE IMAGEN PRINTLINE CF232A. 23000 PAG. HP",null,"UNIDAD (BIENES) ","TONER",86.19999999999999,150,130]
[null,"T314","UNIDAD DE IMAGEN PRINTLINE  CE314A. 14000 PAG. HP",null,"UNIDAD (BIENES) ","TONER",91.8,150,130]
[null,"TR116","UNIDAD DE IMAGEN PRINTLINE MLT-R116. 9000 PAG. SAMSUNG",null,"UNIDAD (BIENES) ","TONER",0,20,0]
[null,"T420","UNIDAD DE IMAGEN PRINTLINE TN420/450. 12000 PAG. BROTHER",null,"UNIDAD (BIENES) ","TONER",137.79999999999998,185,165]
[null,"T22U","UNIDAD DE IMAGEN PRINTLINE GPR-22 / NPG32 / EXV18 . 27000 PAG. CANON",null,"UNIDAD (BIENES) ","TONER",402.29999999999995,450,430]
[null,"T1143","KIT DE RECARGA PRINTLINE W1143A. 2500 PAG. HP",null,"UNIDAD (BIENES) ","TONER",97.10000000000001,140,120]
[null,"T1LTCB","TINTA MULTI MARCA PRINTLINE 1000 ML BLACK. COMPATIBLE HP/CANON/EPSON/LEXMARK/BROTHER",null,"UNIDAD (BIENES) ","TINTA",52.800000000000004,110,90]
[null,"T1LTCC","TINTA MULTI MARCA PRINTLINE 1000 ML CYAN. COMPATIBLE HP/CANON/EPSON/LEXMARK/BROTHER",null,"UNIDAD (BIENES) ","TINTA",52.800000000000004,110,90]
[null,"T1LTCM","TINTA MULTI MARCA PRINTLINE 1000 ML MAGENTA. COMPATIBLE HP/CANON/EPSON/LEXMARK/BROTHER",null,"UNIDAD (BIENES) ","TINTA",52.800000000000004,110,90]
[null,"T1LTCY","TINTA MULTI MARCA PRINTLINE 1000 ML YELLOW. COMPATIBLE HP/CANON/EPSON/LEXMARK/BROTHER",null,"UNIDAD (BIENES) ","TINTA",52.800000000000004,110,90]
[null,"T1LTEB","TINTA PRINTLINE BLACK. TIPO DYE. 1000 ML EPSON",null,"UNIDAD (BIENES) ","TINTA",52.800000000000004,110,90]
[null,"T1LTEC","TINTA PRINTLINE CYAN. TIPO DYE. 1000 ML EPSON",null,"UNIDAD (BIENES) ","TINTA",52.800000000000004,110,90]
[null,"T1LTEM","TINTA PRINTLINE MAGENTA. TIPO DYE. 1000 ML EPSON",null,"UNIDAD (BIENES) ","TINTA",52.800000000000004,110,90]
[null,"T1LTEY","TINTA PRINTLINE YELLOW. TIPO DYE. 1000 ML EPSON",null,"UNIDAD (BIENES) ","TINTA",52.800000000000004,110,90]
[null,"T1LSB","TINTA PRINTLINE BLACK. SUBLIMACIÓN. 1000 ML EP/KON/ROLD/MIK/RIC",null,"UNIDAD (BIENES) ","TINTA",212.3,250,230]
[null,"T1LSC","TINTA PRINTLINE CYAN. SUBLIMACIÓN. 1000 ML EP/KON/ROLD/MIK/RIC",null,"UNIDAD (BIENES) ","TINTA",192.10000000000002,240,220]
[null,"T1LSM","TINTA PRINTLINE MAGENTA. SUBLIMACIÓN. 1000 ML EP/KON/ROLD/MIK/RIC",null,"UNIDAD (BIENES) ","TINTA",192.10000000000002,240,220]
[null,"T1LSY","TINTA PRINTLINE YELLOW. SUBLIMACIÓN. 1000 ML EP/KON/ROLD/MIK/RIC",null,"UNIDAD (BIENES) ","TINTA",192.10000000000002,240,220]
[null,"T500CB","TINTA MULTI MARCA PRINTLINE 500 ML BLACK. COMPATIBLE HP/CANON/EPSON/LEXMARK/BROTHER",null,"UNIDAD (BIENES) ","TINTA",31.099999999999998,80,60]
[null,"T500CC","TINTA MULTI MARCA PRINTLINE 500 ML CYAN. COMPATIBLE HP/CANON/EPSON/LEXMARK/BROTHER",null,"UNIDAD (BIENES) ","TINTA",31.099999999999998,80,60]
[null,"T500CM","TINTA MULTI MARCA PRINTLINE 500 ML MAGENTA. COMPATIBLE HP/CANON/EPSON/LEXMARK/BROTHER",null,"UNIDAD (BIENES) ","TINTA",31.099999999999998,80,60]
[null,"T500CY","TINTA MULTI MARCA PRINTLINE 500 ML YELLOW. COMPATIBLE HP/CANON/EPSON/LEXMARK/BROTHER",null,"UNIDAD (BIENES) ","TINTA",31.099999999999998,80,60]
[null,"T500EB","TINTA PRINTLINE BLACK. TIPO DYE. 500 ML EPSON",null,"UNIDAD (BIENES) ","TINTA",31.099999999999998,80,60]
[null,"T500EC","TINTA PRINTLINE CYAN. TIPO DYE. 500 ML EPSON",null,"UNIDAD (BIENES) ","TINTA",31.099999999999998,80,60]
[null,"T500EM","TINTA PRINTLINE MAGENTA. TIPO DYE. 500 ML EPSON",null,"UNIDAD (BIENES) ","TINTA",31.099999999999998,80,60]
[null,"T500EY","TINTA PRINTLINE YELLOW. TIPO DYE. 500 ML EPSON",null,"UNIDAD (BIENES) ","TINTA",31.099999999999998,80,60]
[null,"T500PB","TINTA PIGMENTADA PRINTLINE 500 ML BLACK. COMPATIBLE EPSON",null,"UNIDAD (BIENES) ","TINTA",206.9,250,230]
[null,"T500PC","TINTA PIGMENTADA PRINTLINE 500 ML CYAN. COMPATIBLE EPSON",null,"UNIDAD (BIENES) ","TINTA",321.9,360,340]
[null,"T500PM","TINTA PIGMENTADA PRINTLINE 500 ML MAGENTA. COMPATIBLE EPSON",null,"UNIDAD (BIENES) ","TINTA",321.9,360,340]
[null,"T500PY","TINTA PIGMENTADA PRINTLINE 500 ML YELLOW. COMPATIBLE EPSON",null,"UNIDAD (BIENES) ","TINTA",321.9,360,340]
[null,"T100CB","TINTA MULTI MARCA PRINTLINE 100 ML BLACK. COMPATIBLE HP/CANON/EPSON/LEXMARK/BROTHER",null,"UNIDAD (BIENES) ","TINTA",13.799999999999999,30,23]
[null,"T100CC","TINTA MULTI MARCA PRINTLINE 100 ML CYAN. COMPATIBLE HP/CANON/EPSON/LEXMARK/BROTHER",null,"UNIDAD (BIENES) ","TINTA",13.799999999999999,30,23]
[null,"T100CM","TINTA MULTI MARCA PRINTLINE 100 ML MAGENTA. COMPATIBLE HP/CANON/EPSON/LEXMARK/BROTHER",null,"UNIDAD (BIENES) ","TINTA",13.799999999999999,30,23]
[null,"T100CY","TINTA MULTI MARCA PRINTLINE 100 ML YELLOW. COMPATIBLE HP/CANON/EPSON/LEXMARK/BROTHER",null,"UNIDAD (BIENES) ","TINTA",13.799999999999999,30,23]
[null,"T100EB","TINTA PRINTLINE BLACK. TIPO DYE. 100 ML EPSON",null,"UNIDAD (BIENES) ","TINTA",13.799999999999999,30,23]
[null,"T100EC","TINTA PRINTLINE CYAN. TIPO DYE. 100 ML EPSON",null,"UNIDAD (BIENES) ","TINTA",13.799999999999999,30,23]
[null,"T100EM","TINTA PRINTLINE MAGENTA. TIPO DYE. 100 ML EPSON",null,"UNIDAD (BIENES) ","TINTA",13.799999999999999,30,23]
[null,"T100EY","TINTA PRINTLINE YELLOW. TIPO DYE. 100 ML EPSON",null,"UNIDAD (BIENES) ","TINTA",13.799999999999999,30,23]
[null,"T100PB","TINTA MULTI MARCA PIGMENTADA PRINTLINE 100 ML BLACK. COMPATIBLE HP/CANON/EPSON/LEXMARK/BROTHER",null,"UNIDAD (BIENES) ","TINTA",45.9,75,60]
[null,"T100PC","TINTA MULTI MARCA PIGMENTADA PRINTLINE 100 ML CYAN. COMPATIBLE HP/CANON/EPSON/LEXMARK/BROTHER",null,"UNIDAD (BIENES) ","TINTA",68.4,85,75]
[null,"T100PM","TINTA MULTI MARCA PIGMENTADA PRINTLINE 100 ML MAGENTA. COMPATIBLE HP/CANON/EPSON/LEXMARK/BROTHER",null,"UNIDAD (BIENES) ","TINTA",68.4,85,75]
[null,"T100PY","TINTA MULTI MARCA PIGMENTADA PRINTLINE 100 ML YELLOW. COMPATIBLE HP/CANON/EPSON/LEXMARK/BROTHER",null,"UNIDAD (BIENES) ","TINTA",68.4,85,75]
[null,"T100SB","TINTA PRINTLINE BLACK. SUBLIMACIÓN. 100 ML EP/KON/ROLD/MIK/RIC",null,"UNIDAD (BIENES) ","TINTA",40.199999999999996,70,60]
[null,"T100SC","TINTA PRINTLINE CYAN. SUBLIMACIÓN. 100 ML EP/KON/ROLD/MIK/RIC",null,"UNIDAD (BIENES) ","TINTA",40.199999999999996,70,60]
[null,"T100SM","TINTA PRINTLINE MAGENTA. SUBLIMACIÓN. 100 ML EP/KON/ROLD/MIK/RIC",null,"UNIDAD (BIENES) ","TINTA",40.199999999999996,70,60]
[null,"T100SY","TINTA PRINTLINE YELLOW. SUBLIMACIÓN. 100 ML EP/KON/ROLD/MIK/RIC",null,"UNIDAD (BIENES) ","TINTA",40.199999999999996,70,60]
[null,"T9411","TINTA PRINTLINE WORKFORCE PRO EPSON  T9411 / C5790. 100ML.  BLACK",null,"UNIDAD (BIENES) ","TINTA",269.8,330,310]
[null,"T9412","TINTA PRINTLINE WORKFORCE PRO EPSON  T9412 / C5790. 70ML.  CYAN",null,"UNIDAD (BIENES) ","TINTA",269.8,330,310]
[null,"T9412","TINTA PRINTLINE WORKFORCE PRO EPSON  T9413 / C5790. 70ML.  MAGENTA",null,"UNIDAD (BIENES) ","TINTA",269.8,330,310]
[null,"T9413","TINTA PRINTLINE WORKFORCE PRO EPSON  T9414 / C5790. 70ML.  YELLOW",null,"UNIDAD (BIENES) ","TINTA",269.8,330,310]
[null,"T504B","TINTA PRINTLINE 504/544 BLACK. EPSON ECO TANK. 130ML",null,"UNIDAD (BIENES) ","TINTA",20.7,50,40]
[null,"T504C","TINTA PRINTLINE 504/544 CYAN. EPSON ECO TANK. 70 ML.",null,"UNIDAD (BIENES) ","TINTA",13.799999999999999,40,30]
[null,"T504M","TINTA PRINTLINE 504/544 MAGENTA. EPSON ECO TANK. 70 ML.",null,"UNIDAD (BIENES) ","TINTA",13.799999999999999,40,30]
[null,"T504Y","TINTA PRINTLINE 504/544 YELLOW. EPSON ECO TANK. 70 ML.",null,"UNIDAD (BIENES) ","TINTA",13.799999999999999,40,30]
[null,"T574B","TINTA PRINTLINE 574 BLACK. EPSON ECO TANK. 70 ML.",null,"UNIDAD (BIENES) ","TINTA",21.8,50,40]
[null,"T574C","TINTA PRINTLINE 574 CYAN. EPSON ECO TANK. 70 ML.",null,"UNIDAD (BIENES) ","TINTA",17.2,40,30]
[null,"T574M","TINTA PRINTLINE 574 MAGENTA. EPSON ECO TANK. 70 ML.",null,"UNIDAD (BIENES) ","TINTA",17.2,40,30]
[null,"T574Y","TINTA PRINTLINE 574 YELLOW. EPSON ECO TANK. 70 ML.",null,"UNIDAD (BIENES) ","TINTA",17.2,40,30]
[null,"T60B","TINTA PRINTLINE BT-D60 BLACK. BROTHER. 115 ML",null,"UNIDAD (BIENES) ","TINTA",16.1,50,40]
[null,"T5001C","TINTA PRINTLINE BT-5001 CYAN. BROTHER. 50ML",null,"UNIDAD (BIENES) ","TINTA",16.1,40,30]
[null,"T5001M","TINTA PRINTLINE BT-5001 MAGENTA. BROTHER. 50 ML",null,"UNIDAD (BIENES) ","TINTA",16.1,40,30]
[null,"T5001Y","TINTA PRINTLINE BT-5001 YELLOW. BROTHER. 500 ML",null,"UNIDAD (BIENES) ","TINTA",16.1,40,30]
[null,"T574CL","TINTA PRINTLINE 574 CYAN LIGHT. EPSON ECO TANK. 70 ML.",null,"UNIDAD (BIENES) ","TINTA",16.1,40,30]
[null,"T574ML","TINTA PRINTLINE 574 MAGENTA LIGHT. EPSON ECO TANK. 70 ML.",null,"UNIDAD (BIENES) ","TINTA",16.1,40,30]
[null,"T664B","TINTA PRINTLINE 664 BLACK. EPSON ECO TANK. 70 ML.",null,"UNIDAD (BIENES) ","TINTA",13.799999999999999,45,35]
[null,"T664C","TINTA PRINTLINE 664 CYAN. EPSON ECO TANK. 70 ML.",null,"UNIDAD (BIENES) ","TINTA",13.799999999999999,45,30]
[null,"T664M","TINTA PRINTLINE 664 MAGENTA. EPSON ECO TANK. 70 ML.",null,"UNIDAD (BIENES) ","TINTA",13.799999999999999,45,30]
[null,"T664Y","TINTA PRINTLINE 664 YELLOW. EPSON ECO TANK. 70 ML.",null,"UNIDAD (BIENES) ","TINTA",13.799999999999999,45,30]
[null,"T673CL","TINTA PRINTLINE 6735 CYAN LIGHT. EPSON ECO TANK. 70 ML.",null,"UNIDAD (BIENES) ","TINTA",13.799999999999999,45,30]
[null,"T673ML","TINTA PRINTLINE 6736 MAGENTA LIGHT. EPSON ECO TANK. 70 ML.",null,"UNIDAD (BIENES) ","TINTA",13.799999999999999,45,30]
[null,"T190B","TINTA PRINTLINE GI-190 BLACK. CANON. 135ML",null,"UNIDAD (BIENES) ","TINTA",20.7,50,40]
[null,"T190C","TINTA PRINTLINE GI-190 CYAN. CANON. 70 ML.",null,"UNIDAD (BIENES) ","TINTA",16.1,40,30]
[null,"T190M","TINTA PRINTLINE GI-190 MAGENTA. CANON. 70 ML.",null,"UNIDAD (BIENES) ","TINTA",16.1,40,30]
[null,"T190Y","TINTA PRINTLINE GI-190 YELLOW. CANON. 70 ML.",null,"UNIDAD (BIENES) ","TINTA",16.1,40,30]
[null,"T51B","TINTA PRINTLINE GT51 BLACK. HP. 90 ML",null,"UNIDAD (BIENES) ","TINTA",17.6,45,35]
[null,"T51C","TINTA PRINTLINE GT52 CYAN. HP. 70 ML.",null,"UNIDAD (BIENES) ","TINTA",17.6,45,35]
[null,"T51M","TINTA PRINTLINE GT52 MAGENTA. HP. 70 ML.",null,"UNIDAD (BIENES) ","TINTA",17.6,4,35]
[null,"T51Y","TINTA PRINTLINE GT52 YELLOW. HP. 70 ML.",null,"UNIDAD (BIENES) ","TINTA",17.6,545,35]
[null,"C45B","CINTA PRINTLINE ERC-45B.  12,7MM X 4M. EPSON",null,"UNIDAD (BIENES) ","CINTA",16.200000000000003,35,35]
[null,"C38B","CINTA PRINTLINE ERC-38B.  12,7MM X 5M. EPSON",null,"UNIDAD (BIENES) ","CINTA",15.4,25,25]
[null,"C590","CINTA PRINTLINE LQ590/FX890. 12,7MM X 15M. EPSON",null,"UNIDAD (BIENES) ","CINTA",33.1,70,60]
[null,"C2090","CINTA PRINTLINE LQ2090. 12,7MM X 32M. EPSON",null,"UNIDAD (BIENES) ","CINTA",14.8,50,40]
[null,"C350","CINTA UNIVERSAL PRINTLINE LX300/350. 12,7MM X 10 M. COMPATIBLE EPSON",null,"UNIDAD (BIENES) ","CINTA",20.7,40,30]
[null,"P85","POLVO UNIVERSAL HP 85A/12A/CANON 104. 1000 GR.",null,"UNIDAD (BIENES) ","POLVO",97.69999999999999,150,130]
[null,"P17","POLVO PRINTLINE MONOCROMATICO. HP SERIE CF217A/CF230A/CF279A. 1000 GR",null,"UNIDAD (BIENES) ","POLVO",124.1,175,155]
[null,"PS100","POLVO PRINTLINE MONOCROMATICO. SAMSUNG. 1000 GR",null,"UNIDAD (BIENES) ","POLVO",114.80000000000001,165,145]

{"sheet":"Hoja1","index":1,"n_rows":0,"n_cols":0,"rows_kept":0}